Cogmind - Beta 16.1 @@@ ROGUE MODE // 2026.03.01 @ 17:12:20 Player: the Result: Destroyed by as-22546 with Assembled Rifle Performance ------------- Evolutions (0) 0 Regions Visited (2) 400 Robots Destroyed (42) 210 Value Destroyed (598) 598 Prototype IDs (2) 40 Alien Tech Used (0) 0 Bonus (-33) -33 TOTAL SCORE: 1215 Bonus ------- Friendly Fire -33 Cogmind --------- Core Integrity 0/250 Matter 201/300 Energy 265/265 System Corruption 0% Temperature Cool (0) Movement Walking (260) Ox2 Location -10/Mines Parts ------- > --- POWER (1) -------- Improved Ion Engine > --- PROPULSION (2) --- Flexi-carbon Leg > --- UTILITY (2) ------ High-capacity Storage Unit Seismic Detector > --- WEAPON (2) ------- Light Cannon Mini Grenade Launcher > --- INVENTORY (20) --- Improved Ion Engine Improved Ion Engine Large Storage Unit Huge Storage Unit Improved Terrain Scanner Seismic Detector Seismic Detector Hacking Suite Beam Cannon Beam Cannon Beam Cannon Autogun Autogun Autogun Autogun Light Cannon Mini Grenade Launcher Mining Laser Peak State ------------ > --- POWER ------------ Improved Ion Engine > --- PROPULSION ------- Flexi-carbon Leg > --- UTILITY ---------- High-capacity Storage Unit Seismic Detector > --- WEAPON ----------- Light Cannon Slug Cannon > --- INVENTORY -------- Improved Ion Engine Improved Ion Engine Large Storage Unit Huge Storage Unit Improved Terrain Scanner Seismic Detector Seismic Detector Hacking Suite Beam Cannon Beam Cannon Beam Cannon Autogun Autogun Autogun Autogun Light Cannon Mini Grenade Launcher Mini Grenade Launcher Mining Laser [Rating: 17] Favorites ----------- Power Ion Engine Engine Ion Engine Propulsion Light Treads Treads Light Treads Leg Flexi-carbon Leg Utility Seismic Detector Device Seismic Detector Storage High-capacity Storage Unit Weapon Assault Rifle Energy Cannon Beam Cannon Ballistic Gun Assault Rifle Ballistic Cannon Light Cannon Launcher Mini Grenade Launcher Special Weapon Mining Laser Build | -11 -10 -10 ------- Run | Yrd Mat Min Slots Evolved . | . . . Power . | . . . Propulsion . | . . . Utility . | . . . Weapon . | . . . Parts Attached 22 | 8 10 4 Power 2 | 1 1 . Engine 2 | 1 1 . Core . | . . . Reactor . | . . . Propulsion 3 | 2 . 1 Treads 2 | 2 . . Leg 1 | . . 1 Wheel . | . . . Hover . | . . . Flight . | . . . Utility 5 | 2 3 . Device 2 | 1 1 . Storage 3 | 1 2 . Processor . | . . . Hackware . | . . . Protection . | . . . Artifact . | . . . Weapon 12 | 3 6 3 Energy Gun . | . . . Energy Cannon 1 | . 1 . Ballistic Gun 5 | 3 2 . Ballistic Cannon 3 | . 2 1 Launcher 2 | . . 2 Special Weapon 1 | . 1 . Impact Weapon . | . . . Slashing Weapon . | . . . Piercing Weapon . | . . . Special Melee Weapon . | . . . Unidentified Prototypes . | . . . Parts Lost 3 | . . 3 Power . | . . . Propulsion 2 | . . 2 Utility . | . . . Weapon 1 | . . 1 Highest Loss Streak 3 | . . 3 To Critical Strikes . | . . . Average Backups 14 | 3 13 19 Power 1 | 1 1 2 Propulsion . | . . . Utility 4 | 1 3 6 Weapon 9 | 1 8 11 Tool/Special . | . . . Unused Backups 22 | . 7 15 Power 4 | . 2 2 Propulsion . | . . . Utility 6 | . 1 5 Weapon 12 | . 4 8 Tool/Special . | . . . Average Slot Usage (%) 99 | . 99 99 Engine 14 | . 14 14 Treads 27 | . 27 27 Device 14 | . 14 14 Storage 14 | . 14 14 Ballistic Gun 15 | . 22 . Ballistic Cannon 6 | . 3 14 Launcher 4 | . . 13 Special Weapon 1 | . 2 . Peak Build Rating 17 | 7 11 17 Average Rating 9 | 5 8 13 On Entrance 6 | . 7 11 Avg Prop Armor Cover (%) . | . . . Naked Turns . | . . . Heaviest Build 56 | 15 54 56 Greatest Support 40 | 40 40 40 Greatest Overweight (x) 2 | . 1 2 Average Overweight (x) . | . . 1 Largest Inventory Capacity 20 | 8 20 20 Average Capacity 15 | 7 15 20 Most Carried 20 | 6 20 20 Average Carried 14 | 4 13 19 Final Capacity 20 | 8 20 20 Final Carried 20 | 6 20 18 Class Distribution -------------------- 100% | Mutant Dominant Class ---------------- Mutant | -10/Materials Mutant | -10/Mines Resources | -11 -10 -10 ----------- Run | Yrd Mat Min Matter Collected 1105 | 365 547 193 Remotely . | . . . Salvage Created 1041 | 178 691 172 Parts 78 | 22 48 8 Haulers Intercepted 2 | . 2 . Recyclers Shooed . | . . . Parts Field Recycled . | . . . Retrieved Matter . | . . . Parts Self-Destructed . | . . . Prevented . | . . . Parts Restored . | . . . Kills | -11 -10 -10 ------- Run | Yrd Mat Min Combat Hostiles Destroyed 27 | . 16 11 Guns 14 | . 14 . Cannons 4 | . 2 2 AOE 9 | . . 9 Classes Destroyed 11 | 3 6 2 Worker 6 | 2 4 . Builder 2 | . 2 . Tunneler 7 | 5 . 2 Hauler 2 | . 2 . Recycler 3 | 1 . 2 Operator 1 | . 1 . Watcher 3 | . 3 . Swarmer 9 | . 9 . Grunt 7 | . 7 . Demolisher 2 | . . 2 Assembled 9 | . . 9 Best Kill Streak 11 | 2 6 11 Combat Bots Only 11 | . 3 11 Max Kills in Single Turn 3 | 1 2 3 Gunslinging . | . . . Exploded 3 | . . 3 Melee . | . . . Uniques/NPCs Destroyed . | . . . Combat | -11 -10 -10 -------- Run | Yrd Mat Min Hostile Shots Fired 134 | . 75 59 Missed 42 | . 22 20 Hits 92 | . 53 39 Projectile 92 | . 53 39 AOE 12 | . . 12 Critical Strikes 1 | . 1 . Damage Taken 1517 | . 603 914 Core 263 | . 114 149 Absorbed by Shields . | . . . Regen/Repaired (Parts) 232 | . 232 . Core Remaining (%) 100 | 100 . . Volleys Fired 120 | 15 75 30 Largest 2 | 2 2 2 Hottest 100 | 40 100 70 Shots Fired 205 | 30 136 39 Gun 143 | 30 113 . Cannon 43 | . 12 31 Launcher 8 | . . 8 Special 11 | . 11 . Kinetic 186 | 30 125 31 Thermal 11 | . 11 . Explosive 8 | . . 8 Electromagnetic . | . . . Robot Hit Streak 12 | 6 12 7 Robot Miss Streak 7 | 2 7 3 Penetration Max . | . . . Secondary Targets 1 | . 1 . Max Gunslinging Chain 1 | . 1 . Shots Hit Robots 106 | 19 67 20 Core Hits 75 | 9 38 28 Critical Kills . | . . . Critical Parts Destroyed . | . . . Critical Strikes . | . . . Melee Attacks . | . . . Impact . | . . . Slashing . | . . . Piercing . | . . . Sneak Attacks . | . . . Combat Hostiles . | . . . Follow-up Attacks . | . . . Damage Inflicted 2364 | 208 956 1200 Guns 1010 | 208 802 . Cannons 535 | . 138 397 Explosions 790 | . . 790 Melee . | . . . Ramming 29 | . 16 13 Kinetic 1545 | 208 940 397 Thermal . | . . . Explosive 790 | . . 790 Electromagnetic . | . . . Impact . | . . . Slashing . | . . . Piercing . | . . . Highest Corruption . | . . . Average Corruption . | . . . Corruption Purged . | . . . Corruption Blocked . | . . . Overload Shots . | . . . Overflow Damage 60 | . . 60 Projectiles 33 | . . 33 Explosions 27 | . . 27 Melee . | . . . Knockbacks 2 | . 1 1 Impact 1 | . 1 . Kinetic 1 | . . 1 Secondary . | . . . Self-Inflicted Damage 38 | . . 38 Shots 1 | . . 1 Rammed 4 | . 3 1 Targets Rammed 5 | . 3 2 Kicked . | . . . Crushed 1 | . . 1 Highest Temperature 80 | . 80 70 Average Temperature 22 | . 23 22 Received Heat Transfer 321 | . 261 60 Siege Activations . | . . . Martial Activations . | . . . Shielding Activations . | . . . Robots Disrupted . | . . . Combat Hostiles . | . . . Robots Corrupted . | . . . Combat Hostiles . | . . . Parts Fried . | . . . Impact Corruptions . | . . . Robots Melted . | . . . Combat Hostiles . | . . . Parts Melted . | . . . Heat Transferred . | . . . Parts Sabotaged . | . . . Parts Stolen . | . . . Parts Stripped . | . . . Power Chain Reactions . | . . . Alert | -11 -10 -10 ------- Run | Yrd Mat Min Maximum Alert Level . | . . . Low Security (%) 100 | 100 100 100 Level 1 . | . . . Level 2 . | . . . Level 3 . | . . . Level 4 . | . . . Level 5 . | . . . High Security . | . . . Max Security . | . . . Peak Influence 121 | 10 121 40 Initial 19 | . . 19 Average 22 | . 34 2 Influence Increases 716 | 40 587 89 Destroy 0b10 Robot/C 360 | . 320 40 Destroy 0b10 Robot/NC 120 | 40 60 20 Destroy Leader 90 | . 80 10 Successful Hack 57 | . 57 . Select Force Hacks 60 | . 60 . Destroy Structure 29 | . 10 19 Influence Decreases 681 | 40 537 104 Entered New Map 31 | . . 31 Time Decay 615 | 40 527 48 Lost Part 11 | . . 11 Lost Ally 24 | . 10 14 Squads Dispatched 4 | . 4 . Investigation 2 | . 2 . Extermination . | . . . Reinforcement 2 | . 2 . Assault . | . . . Garrison . | . . . Intercept . | . . . Searches Triggered . | . . . Construction Impeded . | . . . Haulers Reinforced . | . . . Active Scanning Responses . | . . . Cargo Convoy Interrupts . | . . . Stealth | -11 -10 -10 --------- Run | Yrd Mat Min Distress Signals 2 | . 2 . Communications Jammed . | . . . Distress Signals . | . . . Times Spotted 45 | . 23 22 Peak Tracking Total 14 | . 3 14 Tactical Retreats . | . . . Traps | -11 -10 -10 ------- Run | Yrd Mat Min Traps Triggered . | . . . Indirectly . | . . . Trap Hack Attempts . | . . . Triggered . | . . . Disarmed . | . . . Reprogrammed . | . . . Reused . | . . . Traps Extracted . | . . . Installed . | . . . Triggered . | . . . Machines | -11 -10 -10 ---------- Run | Yrd Mat Min Machines Disabled . | . . . Max in Single Turn . | . . . Machines Repaired . | . . . Machines Dismantled . | . . . Machines Sabotaged . | . . . Overloaded Fab Kills . | . . . Hacking | -11 -10 -10 --------- Run | Yrd Mat Min Machines Accessed 9 | . 9 . Terminals 6 | . 6 . Fabricators . | . . . Repair Stations 1 | . 1 . Recycling Units 2 | . 2 . Scanalyzers . | . . . Garrison Access . | . . . Total Hacks 34 | . 34 . Successful 23 | . 23 . Failed 11 | . 11 . Catastrophic 3 | . 3 . Database Lockouts . | . . . Manual 27 | . 27 . Terminals 26 | . 26 . Fabricators . | . . . Repair Stations 4 | . 4 . Recycling Units 4 | . 4 . Scanalyzers . | . . . Garrison Access . | . . . Terminal Hacks 5 | . 5 . Robot Analysis 1 | . 1 . Prototype ID Bank 1 | . 1 . Terminal Index 1 | . 1 . Locate Traps 1 | . 1 . Zone Layout 1 | . 1 . Fabricator Hacks . | . . . Repair Station Hacks 4 | . 4 . Scan Component 2 | . 2 . Repair 2 | . 2 . Recycling Unit Hacks 1 | . 1 . Retrieve Components 1 | . 1 . Scanalyzer . | . . . Garrison Access Hacks . | . . . Unauthorized Hacks 13 | . 13 . Terminals 11 | . 11 . Assimilate 3 | . 3 . Botnet 2 | . 2 . Operators 1 | . 1 . Skim 5 | . 5 . Fabricators . | . . . Repair Stations . | . . . Recycling Units 2 | . 2 . Tunnel 2 | . 2 . Scanalyzers . | . . . Garrison Access . | . . . Data Cores Recovered . | . . . Used . | . . . Hacking Detections 8 | . 8 . Full Trace Events . | . . . Feedback Events . | . . . Feedback Blocked . | . . . Robot Schematics Acquired . | . . . Robots Built . | . . . Authchips . | . . . Time . | . . . Total Robot Build Rating . | . . . Part Schematics Acquired . | . . . Parts Built . | . . . Authchips . | . . . Time . | . . . Total Part Build Rating . | . . . Part Studies Acquired . | . . . Parts Repaired 2 | . 2 . Time 52 | . 52 . Parts Recycled . | . . . Recycled Matter . | . . . Retrieved Matter . | . . . Retrieved Components 10 | . 10 . Parts Scanalyzed . | . . . Part Schematics Acquired . | . . . Parts Damaged . | . . . Bothacking | -11 -10 -10 ------------ Run | Yrd Mat Min Used RIF Installer . | . . . Robots Hacked . | . . . Non-combat . | . . . Combat . | . . . Robot Hacks Applied . | . . . Relay Couplers Released . | . . . Fabnet Peak Effective % . | . . . Robots Rewired . | . . . Allies Hacked . | . . . Hacks Repelled . | . . . Allies | -11 -10 -10 -------- Run | Yrd Mat Min Total Allies 4 | . 1 3 Largest Group 3 | . 1 3 Highest-Rated Group 40 | . 10 40 Highest-Rated Ally 16 | . 10 16 Total Orders . | . . . Ally Attacks 9 | . . 9 Total Damage 89 | . . 89 Kills 2 | . . 2 Allies Corrupted . | . . . Allies Melted . | . . . Intel | -11 -10 -10 ------- Run | Yrd Mat Min Active Infowar (turns) 2680 | 50 1792 838 Seismic 2680 | 50 1792 838 Robot Analysis Total 1 | . 1 . Derelict Logs Recovered . | . . . Drone Launches . | . . . Drone Recoveries . | . . . Exploration | -11 -10 -10 ------------- Run | Yrd Mat Min Turns Passed 2881 | 251 1792 838 Spaces Moved 1117 | 120 685 312 Core 3 | 3 . . Treads 1109 | 117 685 307 Legs 5 | . . 5 Wheels . | . . . Hover . | . . . Flight . | . . . Fastest Speed 50 | 50 160 240 Average Speed 202 | 157 193 240 Slowest Speed 260 | 160 240 260 Overloaded Moves . | . . . Propulsion Burnouts . | . . . Robots Hopped . | . . . Potential Cave-ins . | . . . Cave-ins Triggered . | . . . Exploration Rate (%) 58 | 6 99 69 Regions Visited 2 Branch Regions 1 Pre-discovered Areas 4 | . 3 1 Known Exits Taken 1 | . 1 . Unknown Exits Taken 1 | 1 . . Scrap Searched 1 | . . 1 Spaces Dug 6 | . 6 . Terrain Destroyed 37 | . 9 28 Melee . | . . . Projectile 14 | . 9 5 AOE 23 | . . 23 Terrain Rammed . | . . . Walls Destroyed . | . . . Machines Disabled . | . . . Actions | -11 -10 -10 --------- Run | Yrd Mat Min Total 1501 | 148 995 358 Wait 173 | . 172 1 Move 1115 | 119 684 312 Hop . | . . . Pick Up 36 | 6 28 2 Fast Attach 9 | 7 2 . Attach 4 | . 2 2 Detach . | . . . Swap 19 | 1 12 6 Drop 20 | . 17 3 Fire 120 | 15 75 30 Melee . | . . . Ram . | . . . Kick . | . . . Crush 5 | . 3 2 Escape Stasis . | . . . Rewire . | . . . Trap . | . . . Miscellaneous . | . . . Route ------- -11/Scrapyard -10/Materials (discovered 6 exits: [*Mat x3] / *Min x2 / Sub) -10/Mines (discovered 2 exits: [*Mat x2]) History --------- Turn | Location | Event 42 | -11/Scrapyard | Discovered new exit (range 14) 252 | -11/Scrapyard | Entered Materials 310 | -10/Materials | Build established: Mutant 531 | -10/Materials | Discovered new exit (range 13) 664 | -10/Materials | Discovered new exit (range 10) 819 | -10/Materials | Discovered new exit (range 15) 1066 | -10/Materials | Discovered new exit (range 12) 1192 | -10/Materials | Repaired Lgt. Treads 1200 | -10/Materials | Identified exit to Subcaves 1219 | -10/Materials | Repaired Lgt. Treads 1267 | -10/Materials | Identified exit to Mines 1324 | -10/Materials | Learned location of 1 exit from Recycling 1407 | -10/Materials | Learned Storage trap positions 1456 | -10/Materials | Loaded intel: 1 repair station location 1515 | -10/Materials | Learned 2 Storage zone layouts 1582 | -10/Materials | Learned Storage emergency access door positions 2044 | -10/Materials | Entered Mines 2072 | -10/Mines | Met a Derelict bent on vengeance 2426 | -10/Mines | A weapon hastily lodged in a ceiling crevice suddenly fell to the ground 2568 | -10/Mines | Discovered new exit (range 15) 2583 | -10/Mines | Learned location of Storage (-7) 2712 | -10/Mines | Discovered new exit (range 5) 2762 | -10/Mines | Assisted by bots powering up and referring to "LRC-V3" 2821 | -10/Mines | Assembled infested the area 2826 | -10/Mines | Assisted by a Guerilla fighting off Assembled 2833 | -10/Mines | Core integrity fell below 50% 2857 | -10/Mines | Core integrity fell below 20% 2875 | -10/Mines | Lost 4 allies 2882 | -10/Mines | Destroyed by as-22546 with Assembled Rifle Last Messages --------------- 02855_ U-05 Engineer lays Concrete. 02856_ The unstable cave ceiling collapses. 02856_ Slug Cannon destroyed. 02856_ U-05 Engineer lays Concrete. 02858_ as-63376 destroyed. 02858_ U-05 Engineer builds a Wall. 02859_ D-53 Grenadier destroyed. 02860_ The unstable cave ceiling collapses. 02862_ U-05 Engineer lays Concrete. 02866_ U-05 Engineer builds a Wall. 02870_ The unstable cave ceiling collapses. 02871_ K-01 Serf collects debris. 02871_ as-97158 destroyed. 02873_ U-05 Engineer lays Concrete. 02875_ K-01 Serf collects debris. 02875_ U-05 Engineer lays Concrete. 02878_ The unstable cave ceiling collapses. 02878_ U-05 Engineer lays Concrete. 02878_ Acquired 82 matter. 02881_ K-01 Serf collects debris. Map ----- +----------------------------------------------------+ | # ############# % #??? | | # #???????????##### ####### ] ##??? | | # #???????????????# #?????## #### ###???? | | # #???????????????# #??????#####"#??# ##????? | | # #???????????????# #??????????###??# #????? | | # #???############# #??????????####?### #????? | | # #???# #????????### ##??# #????? | | #???# #############???????## ##?# ###??? | | ###???# #??????????????###### ### ##?? | | ??????# #??????????????# ##? | | ?????## ########???????# #? | | ?????# #???????# #? | | ?????# #???????### < #? | | ?????# #?????????## ##? | | ?????# #??????????# ####?? | | ?????# #??????????# ##????? | | ?????# """ """ #??????????## ##?????? | | ?????# """ """ #???????????## ! #####??????? | | ?????# """ """ #????????????##% ###??????????? | | ?????###########?????????????# #????????????? | | ?????????????????????????????# #????????????? | | ?????????????????????????????#= #????????????? | | ?????????????????????????????#=*#????????????? | | ?????????????????###??????##?#% #????????????? | | ????????????????# ###### ###[=#????????????? | | ???????????????# %%@ #????????????? | | ???????????????# #k ## #????????????? | | ?????????????### # #### #????????????? | | ????????? # # #????????????? | | ???????? # a # #????????????? | | ???????? #### #????????????? | | ???????? a a #????????????? | | ????????? % #????????????? | | ????????? = %# ###????????????? | | ?????????? = ## #??????????????? | | ?????????? * #? ???????????????? | | ?????????? #? ???????????????? | | ??????????? ? ???????????????? | | ??????????? ##?#???????????????? | | ???????????? ### ### ##??????????????????? | | ???????????? #??##???#????????????????????? | | ????????????? #?????????????????????????????? | | ?????????????????????????????????????????????? | | ?????????????????????????????????????????????? | | ?????????????????????????????????????????????? | | | | | | | | | | | +----------------------------------------------------+ Best States ------------- Heat Dissipation 25 Energy Generation 12 Energy Capacity 265 Matter Stores 300 Matter Capacity 300 Sight Range 16 Terrain Scan Density 10 Evasion (%) 40 Recoil Reduction 2 Item Schematics ----------------- None Robot Schematics ------------------ None Fabricated ------------ Nothing Repaired ---------- Lgt. Treads | 7% | -10/Materials Lgt. Treads | 26% | -10/Materials Studied --------- None Alien Tech Used ----------------- None Achievements -------------- None Challenges ------------ None Game ------ Seed GravityTechKit Manual? 0 Play Time 00:19:20 Cumulative 603.9 hours Start 2026.02.28 @ 19:17:34 End 2026.03.01 @ 17:12:20 Sessions 4 Manual Loads 0 Difficulty Rogue Special Mode None Game No. 343 Rogue 343 Adventurer 0 Explorer 0 Win Type - Total 22 Types 12/0/6/0/0/0/1/2/1/0 Lore% 89 Gallery% 83 Achievement% 71 Wizard Run 0 Options --------- Layout 1 ASCII 0 Keyboard 0 Movement Numpad Keybinds 0 Fullscreen 2 Font 24/Smallcaps Map View 50x40 Zoom Use 0% Tactical HUD 1 Map Filters NONE Filters NONE Steam 1 RUN: 4c4ccf02-a738-4667-a984-9ffcaf91729a